bitfinex/quotes_ETHUSD_20251011
["timestamp","ask_amount","ask_price","bid_price","bid_amount"]
[1760148055391,0.99999999,3778.3,3771.7,1.34229099]
[1760148055595,0.99999999,3777.8,3771.7,1.34229099]
[1760148055828,0.03308891,3777.7,3771.7,1.34229099]
[1760148055982,0.99999999,3777.1,3771.7,1.34229099]
[1760148056182,0.99999999,3777.7,3771.7,1.34229099]
[1760148056396,0.99999999,3777.0,3770.7,1.37703299]
[1760148056600,0.99999999,3776.6,3770.7,1.37703299]
[1760148056801,0.03309943,3776.5,3770.7,1.37703299]
[1760148057198,0.99999999,3776.3,3770.7,1.37703299]
[1760148057501,0.99999999,3777.8,3770.4,1.32474263]
[1760148058020,0.99999999,3777.0,3770.4,1.32474263]
[1760148058227,0.03309592,3776.9,3770.4,1.32474263]
[1760148058436,0.99999999,3776.1,3769.6,1.33247607]
[1760148058601,0.99999999,3775.3,3766.0,1.37757908]
[1760148059007,0.99999999,3774.9,3766.0,1.37757908]
[1760148059391,0.99999999,3774.8,3768.1,1.38247669]
[1760148059591,0.99999999,3774.6,3768.1,1.38247669]
[1760148059796,0.678,3777.8,3768.1,1.38247669]
[1760148059797,0.99999999,3773.9,3768.1,1.3258557]
[1760148060010,1.92,3777.4,3768.1,1.3258557]
[1760148060011,1.0058598,3774.8,3768.1,1.3258557]
[1760148060493,0.03311521,3774.7,3767.8,1.30724597]
[1760148060692,1.0058598,3774.8,3767.8,1.30724597]
[1760148060929,0.99999999,3774.5,3767.8,1.30724597]
[1760148061141,0.99999999,3774.2,3767.8,1.30724597]
[1760148061322,0.03312047,3774.1,3767.8,1.30724597]
[1760148061623,0.99999999,3773.6,3767.2,1.37007597]
[1760148061806,0.99999999,3774.1,3767.2,1.37007597]
[1760148061998,0.99999999,3773.6,3767.2,1.37007597]
[1760148062203,0.03312574,3773.5,3767.2,1.37007597]
[1760148062413,0.03312574,3773.5,3766.7,1.35800695]
[1760148062414,0.99999999,3773.1,3766.7,1.35800695]
[1760148062722,0.00585981,3774.8,3766.7,1.35800695]
[1760148062723,0.99999999,3774.0,3766.7,1.35800695]
[1760148062902,0.00585981,3774.8,3766.7,1.35800695]
[1760148063220,0.99999999,3773.8,3766.7,1.35800695]
[1760148063410,0.99999999,3773.5,3766.7,1.35800695]
[1760148063611,0.99999999,3773.1,3766.7,1.35800695]
[1760148063909,0.03313013,3773.0,3766.9,1.35548527]
[1760148064113,0.99999999,3773.1,3767.1,1.36775886]
[1760148064313,0.99999999,3773.9,3767.3,1.33222272]
[1760148064512,0.1394639,3772.9,3767.4,0.12843031]
[1760148064719,0.1394639,3772.9,3767.5,1.30128412]
[1760148064896,0.99999999,3773.4,3766.7,1.33659636]
[1760148065095,1.92,3774.6,3766.7,1.33659636]
[1760148065392,0.13945162,3773.3,3766.9,1.34448178]
[1760148065592,0.03312837,3773.2,3767.0,0.20712127]
[1760148065798,0.03312837,3773.2,3767.1,1.32657455]
[1760148065998,0.13945404,3773.1,3766.8,22.5]
[1760148066197,0.03313013,3773.0,3766.8,22.5]
[1760148066419,0.03313013,3773.0,3766.3,1.31925394]
[1760148066725,0.99999999,3772.2,3766.3,1.31925394]
[1760148066931,0.03313803,3772.1,3766.3,1.31925394]
[1760148067142,0.99999999,3772.2,3766.3,1.31925394]
[1760148067436,0.99999999,3773.5,3766.3,1.36008583]
[1760148067727,0.99999999,3773.5,3765.9,22.502]
[1760148067728,0.03312662,3773.4,3766.0,1.32318721]
[1760148068034,0.99999999,3773.3,3766.0,1.32318721]
[1760148068207,0.03312837,3773.2,3766.0,1.32318721]
[1760148068406,0.13947129,3773.2,3766.5,1.3150097]
[1760148068612,1.13947128,3773.2,3766.5,1.3150097]
[1760148068811,0.03312925,3773.1,3766.5,1.3150097]
[1760148069005,0.99999999,3772.7,3766.5,1.3150097]
[1760148069237,0.03313364,3772.6,3766.5,1.3150097]
[1760148069441,0.03313452,3772.5,3766.0,1.32318721]
[1760148069739,0.99999999,3772.9,3766.0,1.32318721]
[1760148069896,0.13947129,3773.2,3766.0,1.32318721]
[1760148069897,0.99999999,3772.7,3766.0,1.32318721]
[1760148070101,0.03313364,3772.6,3766.0,1.32318721]
[1760148070331,0.99999999,3772.5,3766.0,1.32318721]
[1760148070529,0.0331354,3772.4,3766.0,1.32318721]
[1760148070730,0.99999999,3772.3,3766.0,1.32318721]
[1760148070918,1.92,3775.1,3766.0,1.32318721]
[1760148071119,0.99999999,3772.4,3766.0,1.32318721]
[1760148071438,0.99999999,3772.8,3766.0,1.32318721]
[1760148071601,0.13949867,3775.0,3766.0,1.32318721]
[1760148071798,0.99999999,3772.8,3766.0,1.32318721]
[1760148072022,0.03313276,3772.7,3766.0,1.32318721]
[1760148072222,0.99999999,3773.9,3766.0,1.32318721]
[1760148072409,0.13949867,3775.0,3766.4,1.35998554]
[1760148072410,1.0331231,3773.8,3766.4,1.35998554]
[1760148072615,0.99999999,3773.2,3766.4,1.35998554]
[1760148072934,0.13949867,3775.0,3766.4,1.35998554]
[1760148072935,0.99999999,3773.6,3766.4,1.35998554]
[1760148073124,0.99999999,3774.0,3766.4,1.35998554]
[1760148073304,0.13949867,3775.0,3766.9,1.38779014]
[1760148073498,0.99999999,3774.7,3766.9,1.38779014]
[1760148073718,0.4623,3777.2,3766.9,1.38779014]
[1760148073719,0.99999999,3773.9,3766.9,1.38779014]
[1760148074005,0.03312311,3773.8,3766.9,1.38779014]
[1760148074214,0.4623,3777.3,3766.9,1.38779014]
[1760148074414,0.13946212,3773.7,3766.8,1.35353179]
[1760148074731,0.99999999,3775.1,3766.8,1.35353179]
[1760148074906,0.99999999,3774.7,3766.8,1.35353179]
[1760148075112,0.13945838,3773.6,3766.8,1.35353179]
[1760148075309,0.03312574,3773.5,3766.8,1.35353179]
[1760148075521,0.03311784,3774.4,3766.5,1.31012178]
[1760148075697,0.13945945,3773.5,3766.5,1.31012178]
[1760148075903,0.03312662,3773.4,3766.5,1.31012178]
[1760148076199,0.13946509,3773.4,3766.5,1.31012178]
[1760148076507,0.0331275,3773.3,3767.0,1.34273347]
[1760148076709,0.001,3773.8,3767.0,1.34273347]
[1760148077402,0.001,3773.8,3768.5,1.31649155]
[1760148077622,0.13943506,3773.7,3768.5,1.31649155]
[1760148077836,0.001,3773.8,3768.5,1.31649155]
[1760148078346,0.001,3773.8,3766.3,0.002]
[1760148078347,0.001,3773.8,3770.0,1.3266474]
[1760148080532,0.001,3773.8,3769.0,1.34714241]
[1760148081342,0.001,3773.8,3768.5,1.3354216]
[1760148082215,0.03412311,3773.8,3768.5,1.3354216]
[1760148082614,0.03412311,3773.8,3766.3,0.002]
[1760148082615,0.03412311,3773.8,3766.4,1.30553332]
[1760148082948,0.99999999,3773.7,3766.4,1.30553332]
[1760148083145,0.001,3773.8,3766.4,1.30553332]
[1760148083842,0.03412311,3773.8,3766.4,1.30553332]
[1760148084018,0.001,3773.8,3766.4,1.30553332]
[1760148084743,0.001,3773.8,3767.6,1.324527]
[1760148085151,0.03412311,3773.8,3767.6,1.324527]
[1760148085447,0.03412311,3773.8,3766.4,1.30553332]
[1760148086654,1.0341231,3773.8,3766.4,1.33344028]
[1760148086961,0.99999999,3773.0,3766.4,1.33344028]
[1760148087467,0.03313101,3772.9,3766.4,1.33344028]
[1760148087616,0.99999999,3773.5,3766.4,1.33344028]
[1760148087819,0.99999999,3773.2,3766.4,1.33344028]
[1760148088018,0.03312925,3773.1,3766.4,1.33344028]
[1760148088444,0.99999999,3772.9,3766.4,1.33344028]
[1760148088614,0.03313189,3772.8,3766.4,1.33344028]
[1760148088818,0.001,3773.8,3766.4,1.33344028]
[1760148089255,0.03412311,3773.8,3766.4,1.33344028]
[1760148089555,0.03312398,3773.7,3766.4,1.33344028]
[1760148089848,0.001,3773.8,3766.4,1.33344028]
[1760148090446,0.001,3773.8,3766.9,1.35888803]
[1760148091448,0.001,3773.8,3767.5,1.36260173]
[1760148092418,0.03412311,3773.8,3766.9,1.35888803]
[1760148092618,0.001,3773.8,3766.9,1.35888803]
[1760148093850,0.03412311,3773.8,3766.9,1.35888803]
[1760148094425,0.03412311,3773.8,3766.5,1.35705203]
[1760148094857,0.99999999,3773.5,3766.5,1.35705203]
[1760148095030,0.03312662,3773.4,3766.5,1.35705203]
[1760148095450,0.99999999,3772.8,3766.5,1.35705203]
[1760148095651,0.99999999,3773.5,3766.5,1.35705203]
[1760148095968,1.03313275,3772.7,3766.5,1.35705203]
[1760148096152,0.99999999,3772.4,3766.5,1.35705203]
[1760148096783,0.03313628,3772.3,3766.5,1.35705203]
[1760148097282,0.99999999,3771.7,3766.5,1.35705203]
[1760148097439,0.03314243,3771.6,3766.5,1.35705203]
[1760148097639,0.99999999,3771.2,3766.5,1.35705203]
[1760148097853,0.03314682,3771.1,3766.5,1.35705203]
[1760148098241,0.03314682,3771.1,3766.4,0.002]
[1760148098242,0.99999999,3771.0,3766.4,0.002]
[1760148098438,0.99999999,3770.5,3766.4,0.002]
[1760148098669,0.99999999,3770.3,3766.4,0.002]
[1760148098834,0.4394,3771.3,3766.4,0.002]
[1760148098835,0.99999999,3769.8,3766.4,0.002]
[1760148099039,0.99999999,3769.6,3766.0,0.002]
[1760148099237,0.03316089,3769.5,3765.1,1.32910449]
[1760148099468,0.2251,3771.9,3765.1,1.32910449]
[1760148099469,0.99999999,3770.4,3765.1,1.32910449]
[1760148099638,0.99999999,3771.4,3765.1,1.32910449]
[1760148100037,0.03314506,3771.3,3765.1,1.32910449]
[1760148100842,0.2251,3771.9,3765.1,1.32910449]
[1760148101068,0.4394,3772.2,3765.1,1.32910449]
[1760148101272,7.37076649,4328.0,3765.1,1.32910449]
[1760148101273,0.03313803,3772.1,3765.1,1.32910449]
[1760148101486,0.03313189,3772.8,3765.1,1.32910449]
[1760148101677,0.03313276,3772.7,3765.1,1.32910449]
[1760148102184,0.99999999,3772.6,3765.1,1.32910449]
[1760148102386,0.99999999,3771.8,3762.7,1.37858825]
[1760148102684,0.99999999,3771.6,3762.1,1.3657417]
[1760148102889,0.99999999,3771.7,3762.1,1.3657417]
[1760148103094,2.91999999,3772.4,3762.1,1.3657417]
[1760148103389,0.99999999,3772.7,3762.9,1.35256319]
[1760148103587,0.99999999,3772.2,3762.9,1.35256319]
[1760148103789,0.4394,3772.6,3762.9,1.35256319]
[1760148104086,0.99999999,3773.2,3762.9,1.35256319]
[1760148104287,0.03313452,3772.5,3762.9,1.36910197]
[1760148104488,0.99999999,3772.3,3762.9,1.30200105]
[1760148104692,0.03313716,3772.2,3762.9,1.30200105]
[1760148104861,1.43939999,3772.1,3762.9,1.30200105]
[1760148105060,0.99999999,3771.6,3762.9,1.30200105]
[1760148105400,0.99999999,3771.3,3760.8,1.37455648]
[1760148105559,0.99999999,3770.6,3760.8,1.37455648]
[1760148105759,0.99999999,3770.2,3760.8,1.37455648]
[1760148106066,0.99999999,3769.4,3760.8,1.37455648]
[1760148106289,0.03316265,3769.3,3760.8,1.37455648]
[1760148106486,0.4394,3769.2,3759.0,1.38906637]
[1760148106687,0.03316441,3769.1,3759.0,1.38906637]
[1760148106993,0.03315737,3769.9,3759.0,1.38906637]
[1760148107198,0.03315737,3769.9,3759.0,2.45317916]
[1760148107360,0.03314858,3770.9,3761.3,22.5]
[1760148107565,0.03314858,3770.9,3761.4,1.32031424]
[1760148107566,0.47254858,3770.9,3761.4,1.32031424]
[1760148107796,0.4394,3770.8,3761.4,1.32031424]
[1760148107976,1.47255033,3770.7,3761.4,1.32031424]
[1760148108363,1.92,3770.5,3760.4,1.39375149]
[1760148108569,0.99999999,3770.0,3760.4,1.39375149]
[1760148108763,0.69765737,3769.9,3760.4,1.39375149]
[1760148109287,0.6645,3769.9,3760.4,1.39375149]
[1760148109598,0.6645,3769.9,3760.1,1.36883031]
[1760148109599,0.03315737,3769.9,3760.1,1.36883031]
[1760148109795,0.47255737,3769.9,3760.1,1.36883031]
[1760148109966,0.47255737,3769.9,3760.1,1.39932522]
[1760148109967,0.69765737,3769.9,3760.1,1.39932522]
[1760148110162,0.03315737,3769.9,3760.1,1.39932522]
[1760148110363,0.0331521,3770.5,3761.8,1.33338907]
[1760148110696,0.4377,3771.8,3761.8,1.33338907]
[1760148110697,0.03315298,3770.4,3761.8,1.33338907]
[1760148110873,0.03314155,3771.7,3761.8,1.33338907]
[1760148111403,0.03314243,3771.6,3762.4,1.37585138]
[1760148111606,0.61038989,3771.6,3762.4,1.37585138]
[1760148111804,0.61038989,3771.6,3762.4,1.3789705]
[1760148112108,0.57724746,3771.6,3762.4,1.3789705]
[1760148112315,0.03314331,3771.5,3762.4,1.3789705]
[1760148112473,0.13954746,3771.6,3762.4,1.3789705]
[1760148112803,0.03314331,3771.5,3762.4,1.3789705]
[1760148113406,0.13954746,3771.6,3763.5,1.37303266]
[1760148113707,0.03314331,3771.5,3763.5,1.37303266]
[1760148113877,0.03313364,3772.6,3763.5,1.37303266]
[1760148114206,0.4377,3772.7,3763.5,1.37303266]
[1760148114207,0.03313452,3772.5,3763.5,1.37303266]
[1760148114406,0.03313364,3772.6,3763.3,1.33658078]
[1760148114707,0.13952906,3772.4,3763.3,1.33658078]
[1760148115312,0.03313628,3772.3,3763.3,1.33658078]
[1760148115481,0.03313628,3772.3,3764.1,1.33639338]
[1760148116417,0.03313628,3772.3,3763.6,1.37257115]
[1760148116614,0.03313628,3772.3,3763.6,0.09838458]
[1760148116912,0.001,3772.8,3763.6,1.39838458]
[1760148117217,0.03313716,3772.2,3763.6,1.39838458]
[1760148117601,0.13954712,3772.1,3762.8,1.31259594]
[1760148118384,0.13954712,3772.1,3763.8,1.37536847]
[1760148118710,0.03313891,3772.0,3763.8,1.37536847]
[1760148118914,0.03313891,3772.0,3764.0,1.38120781]
[1760148119120,1.43,3771.9,3763.8,1.37536847]
[1760148119415,0.03314067,3771.8,3762.5,1.39182666]
[1760148119630,0.03314067,3771.8,3762.4,22.5]
[1760148119791,0.03314067,3771.8,3762.5,1.30839349]
[1760148120439,0.03314155,3771.7,3762.2,1.30311674]
[1760148120733,0.6704,3771.8,3762.2,1.30311674]
[1760148120945,0.47084155,3771.7,3762.2,1.30311674]
[1760148121238,0.03314155,3771.7,3762.2,1.30311674]
[1760148121415,2.3577,3771.6,3762.2,1.30311674]
[1760148121618,0.47084331,3771.5,3761.5,1.39529061]
[1760148121822,1.92,3772.3,3761.5,1.39529061]
[1760148122030,0.4377,3772.3,3761.5,1.39529061]
[1760148122337,0.03313716,3772.2,3761.5,1.39529061]
[1760148122495,1.92,3771.8,3762.6,1.37856184]
[1760148122696,0.69234155,3771.7,3762.6,1.37856184]
[1760148122918,1.92,3771.4,3762.6,1.37856184]
[1760148123114,0.46254506,3771.3,3762.6,1.37856184]
[1760148123316,0.4294,3771.2,3762.6,1.37856184]
[1760148123620,0.46254682,3771.1,3761.5,1.35489675]
[1760148123832,2.3494,3771.0,3762.7,1.39140568]
[1760148124118,0.99999999,3771.4,3761.4,0.002]
[1760148124119,1.92,3770.4,3761.5,1.35489675]
[1760148124320,0.46255386,3770.3,3761.5,1.35489675]
[1760148124822,0.4294,3770.2,3761.5,1.35489675]
[1760148124991,0.03315561,3770.1,3761.5,1.35489675]
[1760148125307,0.4294,3770.0,3761.5,1.35489675]
[1760148125512,0.03315737,3769.9,3761.5,1.35489675]
[1760148125827,1.92,3769.4,3761.5,1.35489675]
[1760148126126,0.46256265,3769.3,3761.5,1.35489675]
[1760148126320,0.4294,3769.2,3761.5,1.35489675]
[1760148126559,0.03316441,3769.1,3761.5,1.35489675]
[1760148126762,2.3494,3769.0,3761.5,1.35489675]
[1760148126925,0.4294,3768.9,3761.5,1.35489675]
[1760148127124,0.4294,3768.8,3761.5,1.35489675]
[1760148127357,0.03316793,3768.7,3761.5,1.35489675]
[1760148127652,0.4294,3768.8,3761.5,1.35489675]
[1760148127653,0.03316881,3768.6,3761.5,1.35489675]
[1760148127863,1.92,3768.5,3761.5,1.35489675]
[1760148128168,0.03317057,3768.4,3761.5,1.35489675]
[1760148128659,1.92,3768.2,3761.5,1.35689675]
[1760148128957,0.46257321,3768.1,3761.5,1.35689675]
[1760148129178,0.4294,3768.0,3761.6,1.39278347]
[1760148129652,0.03317497,3767.9,3761.6,1.39278347]
[1760148129859,1.92,3768.2,3761.6,1.39278347]
[1760148130022,0.03317321,3768.1,3761.6,1.39278347]
[1760148130341,0.03316177,3769.4,3761.6,1.39278347]
[1760148130648,0.4294,3771.4,3761.6,1.39278347]
[1760148130855,1.92,3770.8,3761.6,1.39278347]
[1760148131032,0.03315034,3770.7,3761.6,1.39278347]
[1760148131231,0.001,3771.8,3761.8,1.33320934]
[1760148131542,0.001,3771.8,3761.5,0.002]
[1760148131543,0.03314243,3771.6,3762.7,1.35646971]
[1760148131757,0.001,3771.8,3762.9,1.35103302]
[1760148132057,0.001,3771.8,3763.1,1.3487668]
[1760148132267,0.001,3771.8,3763.3,1.3270365]
[1760148132475,0.001,3771.8,3764.2,1.37614706]
[1760148132773,0.03414067,3771.8,3764.2,1.37614706]
[1760148133433,0.03414067,3771.8,3764.9,1.35775045]
[1760148134530,0.03414067,3771.8,3763.9,1.36206508]
[1760148134531,0.13959022,3771.7,3763.9,1.36206508]
[1760148135134,0.03314243,3771.6,3763.9,1.36206508]
[1760148135557,0.03314243,3771.6,3764.4,1.3084062]
[1760148135860,0.13958741,3771.5,3764.4,1.3084062]
[1760148136062,0.03314419,3771.4,3764.4,1.3084062]
[1760148136433,0.03314419,3771.4,3764.0,1.35669216]
[1760148137552,0.03314419,3771.4,3763.9,1.33628556]
[1760148137742,0.001,3771.8,3763.9,1.33628556]
[1760148137944,0.03314155,3771.7,3763.9,1.33628556]
[1760148138652,0.13963317,3771.6,3762.8,1.33498424]
[1760148138834,0.13963317,3771.6,3763.0,1.37785474]
[1760148139157,0.13963317,3771.6,3763.2,1.37489771]
[1760148139361,0.13963317,3771.6,3762.8,1.33498424]
[1760148139532,0.13963317,3771.6,3764.0,1.37561866]
[1760148139730,0.13963317,3771.6,3763.9,22.5]
[1760148139731,0.13963317,3771.6,3764.2,1.30573527]
[1760148140029,0.03314331,3771.5,3764.4,1.38719244]
[1760148140232,0.03314331,3771.5,3764.6,1.33047376]
[1760148141034,0.03414067,3771.8,3764.8,1.36956842]
[1760148141238,0.03414067,3771.8,3765.0,1.3744582]
[1760148141647,0.13961681,3771.7,3763.7,1.34136557]
[1760148141856,0.03314243,3771.6,3763.7,1.34136557]
[1760148142060,0.13961681,3771.7,3763.7,1.34136557]
[1760148142449,0.13961681,3771.7,3763.9,1.3004969]
[1760148142682,0.13961681,3771.7,3765.9,1.35115532]
[1760148143592,0.03314243,3771.6,3765.7,1.39557806]
[1760148143793,0.03314331,3771.5,3765.7,1.39557806]
[1760148144582,0.001,3771.8,3765.7,1.39557806]
[1760148144752,0.13961016,3771.4,3765.7,1.39557806]
[1760148144947,0.03314506,3771.3,3765.7,1.39557806]
[1760148145172,0.03314506,3771.3,3765.7,1.39558784]
[1760148145364,0.03314506,3771.3,3764.8,1.33916915]
[1760148145975,0.13961016,3771.4,3764.8,1.33916915]
[1760148146354,0.13961016,3771.4,3765.0,22.5]
[1760148146554,0.001,3771.8,3765.1,1.30806743]
[1760148146962,0.03414067,3771.8,3765.1,1.30806743]
[1760148147871,0.13960842,3771.7,3765.1,1.30806743]
[1760148148055,0.03314243,3771.6,3765.1,1.30806743]
[1760148148450,0.03314243,3771.6,3764.7,1.30473366]
[1760148148654,0.13960842,3771.7,3764.7,1.30473366]
[1760148148856,0.03314243,3771.6,3764.7,1.30473366]
[1760148149670,0.03314243,3771.6,3764.7,1.3854015]
[1760148150198,0.03314155,3771.7,3764.6,0.002]
[1760148150399,0.001,3771.8,3764.6,0.002]
[1760148150400,0.4294,3771.6,3764.6,0.002]
[1760148150600,0.4294,3771.6,3764.7,1.3121445]
[1760148150899,0.13966219,3771.6,3764.7,1.3121445]
[1760148152599,0.13966219,3771.6,3764.6,0.002]
[1760148152787,0.03314331,3771.5,3764.7,1.3854015]
[1760148153114,0.001,3771.8,3764.7,1.3854015]
[1760148153410,0.03414067,3771.8,3764.6,0.002]
[1760148153812,0.13962256,3771.7,3764.1,1.3130852]
[1760148154419,0.03314243,3771.6,3765.1,1.35771299]
[1760148154632,0.03314331,3771.5,3765.0,22.5]
[1760148154927,0.03314419,3771.4,3765.0,22.5]
[1760148155478,0.03314419,3771.4,3764.1,22.5]
[1760148155784,0.03314243,3771.6,3764.1,22.5]
[1760148156002,0.13962256,3771.7,3764.1,22.5]
[1760148156395,0.13962256,3771.7,3766.2,21.8397]
[1760148157428,0.13962256,3771.7,3767.1,22.5]
[1760148158424,0.13962256,3771.7,3768.2,22.5]
[1760148158585,0.13962256,3771.7,3768.2,20.38852801]
[1760148158785,0.13962256,3771.7,3768.2,20.24898237]
[1760148159390,0.13962256,3771.7,3768.6,22.5]
[1760148160666,0.13962256,3771.7,3765.5,0.99999999]
[1760148160807,0.13962256,3771.7,3763.8,0.002]
[1760148161009,0.13962256,3771.7,3765.5,0.99999999]
[1760148161235,0.13962256,3771.7,3764.3,0.99999999]
[1760148161565,0.13962256,3771.7,3766.9,22.5]
[1760148162431,0.13962256,3771.7,3763.2,0.99999999]
[1760148163952,0.13962256,3771.7,3761.4,0.002]
[1760148164172,0.03314243,3771.6,3762.7,0.99999999]
[1760148164459,0.03314243,3771.6,3762.0,0.99999999]
[1760148164654,0.03314243,3771.6,3761.9,0.99999999]
[1760148164863,0.03414067,3771.8,3761.7,0.99999999]
[1760148165059,0.03414067,3771.8,3761.4,0.002]
[1760148165760,0.001,3771.8,3761.4,0.002]
[1760148166071,0.001,3771.8,3762.3,0.99999999]
[1760148166227,0.001,3771.8,3763.3,0.99999999]
[1760148166560,0.001,3771.8,3763.8,0.99999999]
[1760148166862,0.001,3771.8,3764.3,0.99999999]
[1760148167159,0.001,3771.8,3765.2,0.99999999]
[1760148167358,0.001,3771.8,3763.0,86.9039]
[1760148167888,0.001,3771.7,3763.0,86.9039]
[1760148168432,0.001,3771.7,3764.4,86.9039]
[1760148169533,0.001,3771.7,3764.7,86.9039]
[1760148170532,0.1328,3764.7,3763.8,86.9039]
[1760148170860,0.001,3771.7,3763.8,86.9039]
[1760148171435,0.001,3771.7,3765.0,86.9039]
[1760148172458,0.001,3771.7,3765.3,86.9039]
[1760148174358,0.001,3771.7,3762.9,0.002]
[1760148174359,0.001,3771.7,3765.6,86.9039]
[1760148174877,1.36769253,3771.5,3765.6,86.76450513]
[1760148175067,1.33774565,3771.6,3765.6,86.76450513]
[1760148175266,0.001,3771.7,3765.6,86.76450513]
[1760148175476,0.001,3771.7,3766.2,86.9039]
[1760148175768,1.33774565,3771.6,3766.2,86.9039]
[1760148175968,0.13941261,3771.6,3766.2,86.9039]
[1760148176447,0.13941261,3771.6,3767.2,86.626]
[1760148176882,1.36769253,3771.5,3767.2,86.626]
[1760148177056,0.13941261,3771.6,3767.2,86.626]
[1760148177647,0.13941261,3771.6,3767.2,86.48662231]
[1760148177851,0.001,3771.7,3767.2,86.48662231]
[1760148178055,1.33774565,3771.6,3767.2,86.48662231]
[1760148178248,0.001,3771.7,3767.2,86.48662231]
[1760148178486,0.001,3771.7,3766.0,86.765]
[1760148178860,0.13937992,3771.6,3766.0,86.765]
[1760148179584,0.13937992,3771.6,3765.8,86.487]
[1760148179783,0.13937992,3771.6,3765.9,0.6336]
[1760148180286,0.13937992,3771.6,3765.8,86.487]
[1760148180486,0.13937992,3771.6,3768.0,86.626]
[1760148181467,0.13937992,3771.6,3768.9,86.626]
[1760148182585,0.13937992,3771.6,3763.3,1.92]
[1760148182586,0.13937992,3771.6,3769.2,86.626]
[1760148183584,0.13937992,3771.6,3768.8,86.626]
[1760148183991,0.13937992,3771.6,3768.9,0.6336]
[1760148184370,0.13937992,3771.6,3765.0,1.92]
[1760148184371,0.13937992,3771.6,3771.5,86.626]
[1760148185403,0.13937992,3771.6,3770.8,86.626]
[1760148185562,0.13937992,3771.6,3770.8,86.476]
[1760148186370,0.13937992,3771.6,3771.5,86.476]
[1760148187390,0.13937992,3771.6,3771.0,86.476]
[1760148188522,0.13937992,3771.6,3771.1,86.476]
[1760148188897,1.36769253,3771.5,3771.1,86.476]
[1760148189107,0.13937992,3771.6,3771.1,86.476]
[1760148189310,1.36769253,3771.5,3771.1,86.476]
[1760148189545,1.36769253,3771.5,3769.8,86.476]
[1760148189842,0.001,3771.7,3769.8,85.03676267]
[1760148190137,0.001,3771.7,3769.8,82.92550821]
[1760148190138,0.13926796,3771.4,3769.8,82.92550821]
[1760148190491,0.13926796,3771.4,3768.4,85.176]
[1760148191641,0.13926796,3771.4,3769.8,80.8149]
[1760148192404,0.13926796,3771.4,3764.6,4.728]
[1760148192405,0.13926796,3771.4,3770.4,82.926]
[1760148193218,1.32208863,3771.3,3770.4,80.81474554]
[1760148193438,0.13926796,3771.4,3768.9,81.626]
[1760148193439,0.132,3770.4,3768.9,81.626]
[1760148193645,0.13926796,3771.4,3768.9,81.626]
[1760148194546,0.13926796,3771.4,3769.4,79.515]
[1760148195524,0.13926796,3771.4,3769.6,70.357]
[1760148196447,0.13926796,3771.4,3771.3,79.515]
[1760148197448,0.13926796,3771.4,3771.1,79.515]
[1760148197806,0.13926796,3771.4,3771.1,79.5057207]
[1760148198108,0.001,3771.7,3771.1,79.5057207]
[1760148198520,0.001,3771.7,3770.6,79.515]
[1760148198825,1.33774565,3771.6,3770.6,79.515]
[1760148199031,1.47694987,3771.6,3770.6,79.515]
[1760148199334,0.13920422,3771.6,3770.6,79.515]
[1760148199536,1.36769253,3771.5,3770.0,79.515]
[1760148199726,0.13920422,3771.6,3770.0,79.515]
[1760148200038,0.13920422,3771.6,3770.0,78.215]
[1760148200232,1.36769253,3771.5,3770.0,78.215]
[1760148200428,0.13920422,3771.6,3769.0,79.515]
[1760148201127,1.36769253,3771.5,3769.0,79.515]
[1760148201331,0.13920422,3771.6,3769.0,79.515]
[1760148201523,0.13920422,3771.6,3769.8,76.8969]
[1760148202755,0.13920422,3771.6,3771.5,78.206]
[1760148203568,0.13920422,3771.6,3770.9,78.206]
[1760148204584,0.001,3771.7,3771.5,78.206]
[1760148205147,0.001,3771.7,3771.6,0.6336]
[1760148207037,0.001,3771.7,3771.5,78.206]
[1760148207451,0.001,3771.7,3771.6,78.206]
[1760148208130,1.37299806,3774.1,3771.6,78.206]
[1760148208530,1.30087852,3782.9,3771.6,78.206]
[1760148208730,0.99999986,3784.1,3771.6,78.206]
[1760148208930,0.99999986,3783.7,3771.6,78.206]
[1760148209174,1.35724581,3782.2,3771.7,0.6336]
[1760148209347,1.35724581,3782.2,3771.6,78.206]
[1760148209348,0.99999986,3783.3,3771.6,78.206]
[1760148209543,1.35724581,3782.2,3771.6,78.206]
[1760148209744,1.35724581,3782.2,3771.7,0.6336]
[1760148209964,0.99999986,3783.6,3771.6,78.206]
[1760148210167,1.32246068,3783.1,3773.4,0.04404574]
[1760148210338,1.35674681,3783.4,3773.9,78.25004574]
[1760148210538,1.34488446,3783.0,3773.9,78.25004574]
[1760148210739,1.30276347,3783.4,3773.9,78.206]
[1760148210971,1.34819091,3782.9,3773.9,78.206]
[1760148211176,1.38879763,3782.3,3773.9,78.206]
[1760148211352,1.34739771,3782.4,3773.9,78.206]
[1760148211551,1.34739771,3782.4,3769.8,0.002]
[1760148211552,1.30248783,3782.7,3773.1,78.40004574]
[1760148211875,1.38101298,3782.2,3773.1,77.10004574]
[1760148212247,1.9530094,3786.8,3773.1,77.10004574]
[1760148212248,0.99999999,3781.5,3773.1,77.10004574]
[1760148212470,0.99999999,3781.1,3771.5,78.206]
[1760148212842,0.99999999,3780.9,3771.5,78.206]
[1760148213041,0.99999999,3780.8,3771.5,78.206]
[1760148213268,0.99999999,3781.1,3771.5,78.206]
[1760148213567,1.31794191,3781.6,3771.5,75.994]
[1760148213771,1.35475962,3781.9,3771.5,75.994]
[1760148214151,0.99999999,3781.1,3771.5,75.994]
[1760148214372,1.37031114,3781.8,3771.6,77.1]
[1760148214560,0.13914052,3781.0,3771.6,76.96085948]
[1760148215368,0.13914052,3781.0,3771.0,0.6336]
[1760148215567,0.13914052,3781.0,3773.3,76.961]
[1760148216558,0.13914052,3781.0,3774.4,76.961]
[1760148216959,0.13914052,3781.0,3774.5,0.6336]
[1760148217378,0.13914052,3781.0,3778.0,76.961]
[1760148217771,0.13914052,3781.0,3778.0,75.52208559]
[1760148218380,0.13914052,3781.0,3776.2,76.961]
[1760148219483,0.13914052,3781.0,3777.7,74.083]
[1760148220548,0.13914052,3781.0,3777.6,75.522]
[1760148220866,0.13914052,3781.0,3777.6,75.38304388]
[1760148221455,1.38012335,3780.9,3777.3,75.522]
[1760148221661,1.38012335,3780.9,3777.3,74.222]
[1760148221864,0.13914052,3781.0,3777.3,74.222]
[1760148222386,0.13914052,3781.0,3777.4,75.244]
[1760148223465,1.38012335,3780.9,3777.7,72.783]
[1760148223772,0.13914052,3781.0,3778.0,10.2357]